Cogmind - Beta 16 @@@ ROGUE MODE // 2025.11.08 @ 14:39:22 Player: FAQ Result: Self-destructed Performance ------------- Evolutions (2) 1000 Regions Visited (5) 1000 Robots Destroyed (38) 190 Value Destroyed (1178) 1178 Prototype IDs (2) 40 Alien Tech Used (0) 0 Bonus (0) 0 TOTAL SCORE: 3408 Bonus ------- None Cogmind --------- Core Integrity 299/550 Matter 289/300 Energy 100/100 System Corruption 3% Temperature Hot (296) Movement Treading (160) Location -8/Materials Parts ------- > --- POWER (1) -------- (None) > --- PROPULSION (4) --- Light Treads > --- UTILITY (4) ------ Medium Storage Unit Improved Targeting Computer ECM Suite > --- WEAPON (2) ------- (None) > --- INVENTORY (10) --- Light Nuclear Core Medium Storage Unit Experimental Sensor Array System Shield System Shield Peak State ------------ > --- POWER ------------ Light Nuclear Core > --- PROPULSION ------- Improved Hover Unit Improved Hover Unit Improved Hover Unit > --- UTILITY ---------- Improved Heat Sink Medium Storage Unit Improved Targeting Computer ECM Suite > --- WEAPON ----------- EM Shotgun EM Shotgun > --- INVENTORY -------- Light Ion Engine Compact Wheel Medium Storage Unit Experimental Sensor Array System Shield High-powered Shotgun High-powered Shotgun [Rating: 22] Favorites ----------- Power Light Nuclear Core Engine Light Ion Engine Power Core Light Nuclear Core Propulsion Improved Hover Unit Treads Light Treads Wheel Compact Wheel Hover Unit Improved Hover Unit Utility ECM Suite Device ECM Suite Storage Small Storage Unit Processor Improved Targeting Computer Weapon EM Shotgun Energy Gun EM Shotgun Ballistic Gun High-powered Shotgun Build | -11 -10 -10 -10 -9 -8 ------- Run | Yrd Mat Min Exi Min Mat Slots Evolved 4 | . . . . . 4 Power . | . . . . . . Propulsion 2 | . . . . . 2 Utility 2 | . . . . . 2 Weapon . | . . . . . . Parts Attached 33 | 7 8 4 . . 14 Power 7 | 1 2 1 . . 3 Engine 3 | 1 1 . . . 1 Core 4 | . 1 1 . . 2 Reactor . | . . . . . . Propulsion 10 | 2 2 1 . . 5 Treads 5 | 2 . . . . 3 Leg . | . . . . . . Wheel 1 | . . . . . 1 Hover 4 | . 2 1 . . 1 Flight . | . . . . . . Utility 7 | 2 2 . . . 3 Device 4 | 1 2 . . . 1 Storage 2 | 1 . . . . 1 Processor 1 | . . . . . 1 Hackware . | . . . . . . Protection . | . . . . . . Artifact . | . . . . . . Weapon 9 | 2 2 2 . . 3 Energy Gun 2 | . . 2 . . . Energy Cannon . | . . . . . . Ballistic Gun 7 | 2 2 . . . 3 Ballistic Cannon . | . . . . . . Launcher . | . . . . . . Special Weapon . | . . . . . . Impact Weapon . | . . . . . . Slashing Weapon . | . . . . . . Piercing Weapon . | . . . . . . Special Melee Weapon . | . . . . . . Unidentified Prototypes . | . . . . . . Parts Lost 18 | . 2 1 . . 15 Power 3 | . 1 . . . 2 Propulsion 7 | . . 1 . . 6 Utility 3 | . 1 . . . 2 Weapon 5 | . . . . . 5 Highest Loss Streak 6 | . 1 1 . . 6 To Critical Strikes . | . . . . . . Average Backups 6 | 1 4 7 8 8 7 Power . | . . . 1 1 1 Propulsion 1 | . 1 2 2 2 1 Utility 1 | . . 1 2 2 3 Weapon 2 | . 2 3 3 3 1 Tool/Special . | . . . . . . Unused Backups 7 | . 1 . . . 6 Power . | . . . . . . Propulsion . | . . . . . . Utility 4 | . . . . . 4 Weapon 3 | . 1 . . . 2 Tool/Special . | . . . . . . Average Slot Usage (%) 90 | . 98 98 100 100 72 Engine 3 | . 8 3 . . 2 Core 8 | . 5 10 14 14 6 Treads 5 | . 17 . . . 2 Hover 18 | . 10 26 28 28 13 Device 13 | . 13 14 14 14 13 Storage 12 | . 14 14 14 14 9 Processor 2 | . . . . . 8 Energy Gun 11 | . . 19 28 28 3 Ballistic Gun 13 | . 28 8 . . 12 Peak Build Rating 22 | 7 14 15 15 15 22 Average Rating 13 | 4 9 13 15 15 18 On Entrance 10 | . 7 12 15 15 15 Avg Prop Armor Cover (%) . | . . . . . . Naked Turns . | . . . . . . Heaviest Build 28 | 14 18 18 18 18 28 Greatest Support 40 | 40 40 14 14 14 21 Greatest Overweight (x) 6 | . 2 2 1 1 6 Average Overweight (x) . | . . 1 1 1 . Largest Inventory Capacity 10 | 8 8 8 8 8 10 Average Capacity 8 | 7 8 8 8 8 9 Most Carried 9 | 2 8 8 8 8 9 Average Carried 6 | 1 4 7 8 8 6 Final Capacity 10 | 8 8 8 8 8 10 Final Carried 8 | 2 8 8 8 8 5 Class Distribution -------------------- 100% | Mutant Dominant Class ---------------- Mutant | -10/Materials Mutant | -10/Mines Mutant | -10/Exiles Mutant | -9/Mines Mutant | -8/Materials Resources | -11 -10 -10 -10 -9 -8 ----------- Run | Yrd Mat Min Exi Min Mat Matter Collected 978 | 282 180 90 . . 426 Remotely 230 | 152 78 . . . . Salvage Created 1613 | 71 499 152 . . 891 Parts 79 | 2 28 6 . . 43 Haulers Intercepted 1 | . . . . . 1 Recyclers Shooed 2 | . 1 1 . . . Parts Field Recycled . | . . . . . . Retrieved Matter . | . . . . . . Parts Self-Destructed . | . . . . . . Prevented . | . . . . . . Parts Restored . | . . . . . . Kills | -11 -10 -10 -10 -9 -8 ------- Run | Yrd Mat Min Exi Min Mat Combat Hostiles Destroyed 27 | . 9 2 . . 16 Guns 27 | . 9 2 . . 16 Classes Destroyed 12 | 1 4 . . . 7 Worker 2 | . 1 . . . 1 Hauler 1 | . . . . . 1 Recycler 4 | 1 2 1 . . . Mechanic 1 | . . . . . 1 Operator 1 | . . . . . 1 Watcher 2 | . 1 . . . 1 Swarmer 3 | . 3 . . . . Grunt 15 | . 6 2 . . 7 Brawler 2 | . . . . . 2 Duelist 1 | . . . . . 1 Sentry 5 | . . . . . 5 Hunter 1 | . . . . . 1 Best Kill Streak 6 | 1 6 1 . . 4 Combat Bots Only 4 | . 4 1 . . 3 Max Kills in Single Turn 2 | 1 2 1 . . 1 Gunslinging . | . . . . . . Exploded . | . . . . . . Melee . | . . . . . . Uniques/NPCs Destroyed . | . . . . . . Combat | -11 -10 -10 -10 -9 -8 -------- Run | Yrd Mat Min Exi Min Mat Hostile Shots Fired 183 | . 56 9 . 7 111 Missed 43 | . 12 1 . 4 26 Hits 140 | . 44 8 . 3 85 Melee 4 | . . . . . 4 Projectile 136 | . 44 8 . 3 81 Critical Strikes 8 | . 1 . . . 7 Damage Taken 2040 | . 507 104 . 42 1387 Core 374 | . 100 11 . 12 251 Absorbed by Shields . | . . . . . . Core Remaining (%) 75 | 100 . . . 50 . Volleys Fired 98 | 3 33 5 . . 57 Largest 2 | 2 2 2 . . 2 Hottest 90 | 40 46 90 . . 90 Shots Fired 182 | 6 66 10 . . 100 Gun 182 | 6 66 10 . . 100 Cannon . | . . . . . . Launcher . | . . . . . . Special . | . . . . . . Kinetic 159 | 6 66 6 . . 81 Thermal . | . . . . . . Explosive . | . . . . . . Electromagnetic 23 | . . 4 . . 19 Robot Hit Streak 19 | 4 5 7 . . 19 Robot Miss Streak 7 | 2 4 1 . . 7 Penetration Max . | . . . . . . Secondary Targets 5 | . 3 . . . 2 Max Gunslinging Chain 1 | . 1 . . . 1 Shots Hit Robots 128 | 4 36 7 . . 81 Core Hits 77 | 2 20 5 . . 50 Critical Kills 1 | . 1 . . . . Critical Parts Destroyed . | . . . . . . Critical Strikes 1 | . 1 . . . . Destroy 1 | . 1 . . . . Melee Attacks . | . . . . . . Impact . | . . . . . . Slashing . | . . . . . . Piercing . | . . . . . . Sneak Attacks . | . . . . . . Combat Hostiles . | . . . . . . Follow-up Attacks . | . . . . . . Damage Inflicted 2206 | 41 431 92 . . 1642 Guns 2206 | 41 431 92 . . 1642 Cannons . | . . . . . . Explosions . | . . . . . . Melee . | . . . . . . Ramming . | . . . . . . Kinetic 1824 | 41 431 58 . . 1294 Thermal . | . . . . . . Explosive . | . . . . . . Electromagnetic 382 | . . 34 . . 348 Impact . | . . . . . . Slashing . | . . . . . . Piercing . | . . . . . . Highest Corruption 3 | . . . . . 3 Average Corruption 3 | . . . . . 3 Corruption Purged . | . . . . . . Corruption Blocked . | . . . . . . Effects 7 | . . . . . 7 Message Errors 2 | . . . . . 2 Matter Fused 1 | . . . . . 1 Heat Flow Errors 3 | . . . . . 3 Data Loss (major) 1 | . . . . . 1 Overload Shots . | . . . . . . Overflow Damage . | . . . . . . Projectiles . | . . . . . . Explosions . | . . . . . . Melee . | . . . . . . Knockbacks . | . . . . . . Impact . | . . . . . . Kinetic . | . . . . . . Secondary . | . . . . . . Self-Inflicted Damage . | . . . . . . Shots . | . . . . . . Rammed . | . . . . . . Targets Rammed . | . . . . . . Kicked . | . . . . . . Crushed . | . . . . . . Highest Temperature 251 | . 76 84 . 6 251 Average Temperature 44 | . 33 33 . 6 56 Received Heat Transfer 889 | . 258 60 . 40 531 Siege Activations . | . . . . . . Martial Activations . | . . . . . . Shielding Activations . | . . . . . . Robots Disrupted . | . . . . . . Combat Hostiles . | . . . . . . Robots Corrupted . | . . . . . . Combat Hostiles . | . . . . . . Parts Fried 1 | . . . . . 1 Impact Corruptions . | . . . . . . Robots Melted . | . . . . . . Combat Hostiles . | . . . . . . Parts Melted . | . . . . . . Heat Transferred . | . . . . . . Parts Sabotaged . | . . . . . . Parts Stolen . | . . . . . . Parts Stripped . | . . . . . . Power Chain Reactions . | . . . . . . Alert | -11 -10 -10 -10 -9 -8 ------- Run | Yrd Mat Min Exi Min Mat Maximum Alert Level . | . . . . . . Low Security (%) 100 | 100 100 100 . 100 100 Level 1 . | . . . . . . Level 2 . | . . . . . . Level 3 . | . . . . . . Level 4 . | . . . . . . Level 5 . | . . . . . . High Security . | . . . . . . Max Security . | . . . . . . Peak Influence 117 | 5 100 40 . . 117 Initial 7 | . . 7 . . . Average 32 | . 42 7 . . 49 Influence Increases 753 | 5 243 55 . . 450 Destroy 0b10 Robot/C 540 | . 180 40 . . 320 Destroy 0b10 Robot/NC 55 | 5 20 5 . . 25 Destroy Leader 156 | . 42 10 . . 104 Destroy Structure 2 | . 1 . . . 1 Influence Decreases 733 | 5 222 76 . . 430 Entered New Map 14 | . . 14 . . . Time Decay 549 | 5 202 62 . . 280 Lost Part 170 | . 20 . . . 150 Squads Dispatched 6 | . 1 . . . 5 Investigation 1 | . 1 . . . . Extermination . | . . . . . . Reinforcement 2 | . . . . . 2 Assault . | . . . . . . Garrison 3 | . . . . . 3 Intercept . | . . . . . . Searches Triggered . | . . . . . . Construction Impeded . | . . . . . . Haulers Reinforced . | . . . . . . Active Scanning Responses . | . . . . . . Cargo Convoy Interrupts . | . . . . . . Stealth | -11 -10 -10 -10 -9 -8 --------- Run | Yrd Mat Min Exi Min Mat Distress Signals 4 | . 1 . . . 3 Communications Jammed . | . . . . . . Distress Signals . | . . . . . . Times Spotted 59 | . 14 3 . 14 28 Peak Tracking Total 19 | . 5 2 . 19 4 Tactical Retreats 5 | . . 1 . 2 2 ECM-based Alert Blocks 7 | . . 1 . 1 5 Traps | -11 -10 -10 -10 -9 -8 ------- Run | Yrd Mat Min Exi Min Mat Traps Triggered 1 | . 1 . . . . Indirectly . | . . . . . . Trap Hack Attempts . | . . . . . . Triggered . | . . . . . . Disarmed . | . . . . . . Reprogrammed . | . . . . . . Reused . | . . . . . . Traps Extracted . | . . . . . . Installed . | . . . . . . Triggered . | . . . . . . Machines | -11 -10 -10 -10 -9 -8 ---------- Run | Yrd Mat Min Exi Min Mat Machines Disabled . | . . . . . . Max in Single Turn . | . . . . . . Machines Repaired . | . . . . . . Machines Dismantled . | . . . . . . Machines Sabotaged . | . . . . . . Overloaded Fab Kills . | . . . . . . Hacking | -11 -10 -10 -10 -9 -8 --------- Run | Yrd Mat Min Exi Min Mat Machines Accessed 5 | . 2 . 1 . 2 Terminals 4 | . 2 . . . 2 Fabricators . | . . . . . . Repair Stations . | . . . . . . Recycling Units . | . . . . . . Scanalyzers . | . . . . . . Garrison Access . | . . . . . . Total Hacks 7 | . 4 . 1 . 2 Successful 5 | . 2 . 1 . 2 Failed 2 | . 2 . . . . Catastrophic . | . . . . . . Database Lockouts . | . . . . . . Manual 3 | . 3 . . . . Terminals 6 | . 4 . . . 2 Fabricators . | . . . . . . Repair Stations . | . . . . . . Recycling Units . | . . . . . . Scanalyzers . | . . . . . . Garrison Access . | . . . . . . Terminal Hacks 4 | . 1 . 1 . 2 Record 2 | . . . 1 . 1 Prototype ID Bank 1 | . 1 . . . . Zone Layout 1 | . . . . . 1 Fabricator Hacks . | . . . . . . Repair Station Hacks . | . . . . . . Recycling Unit Hacks . | . . . . . . Scanalyzer . | . . . . . . Garrison Access Hacks . | . . . . . . Unauthorized Hacks 1 | . 1 . . . . Terminals 1 | . 1 . . . . Operators 1 | . 1 . . . . Fabricators . | . . . . . . Repair Stations . | . . . . . . Recycling Units . | . . . . . . Scanalyzers . | . . . . . . Garrison Access . | . . . . . . Data Cores Recovered . | . . . . . . Used . | . . . . . . Hacking Detections 1 | . 1 . . . . Full Trace Events . | . . . . . . Feedback Events . | . . . . . . Feedback Blocked . | . . . . . . Robot Schematics Acquired . | . . . . . . Robots Built . | . . . . . . Authchips . | . . . . . . Time . | . . . . . . Total Robot Build Rating . | . . . . . . Part Schematics Acquired . | . . . . . . Parts Built . | . . . . . . Authchips . | . . . . . . Time . | . . . . . . Total Part Build Rating . | . . . . . . Part Studies Acquired . | . . . . . . Parts Repaired . | . . . . . . Time . | . . . . . . Parts Recycled . | . . . . . . Recycled Matter . | . . . . . . Retrieved Matter . | . . . . . . Retrieved Components . | . . . . . . Parts Scanalyzed . | . . . . . . Part Schematics Acquired . | . . . . . . Parts Damaged . | . . . . . . Bothacking | -11 -10 -10 -10 -9 -8 ------------ Run | Yrd Mat Min Exi Min Mat Used RIF Installer . | . . . . . . Robots Hacked . | . . . . . . Non-combat . | . . . . . . Combat . | . . . . . . Robot Hacks Applied . | . . . . . . Relay Couplers Released . | . . . . . . Fabnet Peak Effective % . | . . . . . . Robots Rewired . | . . . . . . Allies Hacked . | . . . . . . Hacks Repelled . | . . . . . . Allies | -11 -10 -10 -10 -9 -8 -------- Run | Yrd Mat Min Exi Min Mat Total Allies . | . . . . . . Largest Group . | . . . . . . Highest-Rated Group . | . . . . . . Highest-Rated Ally . | . . . . . . Total Orders . | . . . . . . Ally Attacks . | . . . . . . Total Damage . | . . . . . . Kills . | . . . . . . Allies Corrupted . | . . . . . . Allies Melted . | . . . . . . Intel | -11 -10 -10 -10 -9 -8 ------- Run | Yrd Mat Min Exi Min Mat Active Infowar (turns) 1767 | . 267 284 275 244 697 ECM 1767 | . 267 284 275 244 697 Robot Analysis Total . | . . . . . . Derelict Logs Recovered 2 | . . . . 2 . Drone Launches . | . . . . . . Drone Recoveries . | . . . . . . Exploration | -11 -10 -10 -10 -9 -8 ------------- Run | Yrd Mat Min Exi Min Mat Turns Passed 2163 | 94 569 284 275 244 697 Spaces Moved 1359 | 49 310 211 238 211 340 Core 14 | 4 . . . . 10 Treads 264 | 45 152 . . . 67 Legs . | . . . . . . Wheels 4 | . . . . . 4 Hover 1077 | . 158 211 238 211 259 Flight . | . . . . . . Fastest Speed 50 | 50 56 116 116 116 52 Average Speed 125 | 151 137 119 116 116 129 Slowest Speed 350 | 160 180 180 116 116 350 Overloaded Moves . | . . . . . . Propulsion Burnouts . | . . . . . . Robots Hopped . | . . . . . . Potential Cave-ins . | . . . . . . Cave-ins Triggered . | . . . . . . Exploration Rate (%) 41 | 4 39 42 61 66 36 Regions Visited 5 Branch Regions 3 Pre-discovered Areas . | . . . . . . Known Exits Taken 1 | . . . . 1 . Unknown Exits Taken 4 | 1 1 1 1 . . Scrap Searched 2 | . . 1 . 1 . Spaces Dug . | . . . . . . Terrain Destroyed . | . . . . . . Melee . | . . . . . . Projectile . | . . . . . . AOE . | . . . . . . Terrain Rammed . | . . . . . . Walls Destroyed . | . . . . . . Machines Disabled . | . . . . . . Actions | -11 -10 -10 -10 -9 -8 --------- Run | Yrd Mat Min Exi Min Mat Total 1633 | 60 393 235 237 210 498 Wait 100 | . 24 9 . . 67 Move 1354 | 48 309 210 237 210 340 Hop . | . . . . . . Pick Up 20 | 2 8 4 . . 6 Fast Attach 19 | 7 5 . . . 7 Attach 13 | . . 4 . . 9 Detach 7 | . 3 . . . 4 Swap 5 | . 3 . . . 2 Drop 17 | . 8 3 . . 6 Fire 98 | 3 33 5 . . 57 Melee . | . . . . . . Ram . | . . . . . . Kick . | . . . . . . Crush . | . . . . . . Escape Stasis . | . . . . . . Rewire . | . . . . . . Trap . | . . . . . . Miscellaneous . | . . . . . . Route ------- -11/Scrapyard -10/Materials (discovered 2 exits: [*Mat] / [*Min]) -10/Mines -10/Exiles -9/Mines (discovered 2 exits: *Mat x2) -8/Materials (discovered 1 exit: [*Fac]) History --------- Turn | Location | Event 8 | -11/Scrapyard | Discovered new exit (range 15) 95 | -11/Scrapyard | Entered Materials 299 | -10/Materials | Discovered new exit (range 12) 306 | -10/Materials | Build established: Mutant 408 | -10/Materials | Discovered new exit (range 16) 664 | -10/Materials | Entered Mines 883 | -10/Mines | Found a damaged Exp. Sensor Array with a note attached 886 | -10/Mines | Found Prototype Device 942 | -10/Mines | Deemed a non-threat by the Exiles lab entrance 943 | -10/Mines | Discovered new exit (range 5) 948 | -10/Mines | Entered Exiles 948 | -10/Exiles | Found Exiles lab abandoned 1210 | -10/Exiles | Discovered new exit (range 14) 1223 | -10/Exiles | Entered Mines 1337 | -9/Mines | Assembled infested the area 1366 | -9/Mines | Identified exit to Materials 1425 | -9/Mines | Learned Materials emergency access door positions 1451 | -9/Mines | Discovered exit to Materials (range 9) 1467 | -9/Mines | Entered Materials 1467 | -8/Materials | Evolved 4 slots: Propulsion x2, Utility x2 1625 | -8/Materials | Lost 3 parts (1n1u1w) 1895 | -8/Materials | Garrison activated, responded to threat 2096 | -8/Materials | Lost 6 parts (1p3n2w) 2107 | -8/Materials | Discovered new exit (range 16) 2164 | -8/Materials | Self-destructed Last Messages --------------- 02065_ Imp. Hover Unit destroyed. 02069_ Y-45 Defender destroyed. 02071_ System corrupted: Heat flow error (+193). 02075_ K-01 Serf collects debris. 02078_ ALERT: Hostiles spotted, dispatching reinforcements to Terminal M005. 02079_ K-01 Serf collects debris. 02087_ LQLEVDUUOL2U0IMR6 KP>N<=GEHM97MI=IC4Z2 02087_ K-01 Serf collects debris. 02106_ Acquired Lgt. Treads. 02107_ Acquired 54 matter. 02107_ EXIT=FOUND 02109_ K-01 Serf collects debris. 02155_ System corrupted: Heat flow error (+219). 02156_ K-01 Serf collects debris. 02162_ Lgt. Nuclear Core destroyed. 02162_ Critical hit (Burn: +37). 02163_ Hvy. Assault Rifle destroyed. 02164_ EM Shotgun destroyed. 02164_ Critical hit (Burn: +37). Map ----- +----------------------------------------------------+ | ??????????# ?# #????????????????????????????? | | ??????????# ## #????????????????????????????? | | ??????????# ## #????????????????????????????? | | ??????????# #? #????????????????????????????? | | ??????????# #? #????????????????????????????? | | ??????????# #?? ?????????????????????????????? | | ?????????## ##? ?#######?????????????????????? | | ?????????# ###+### #?????????????????????? | | ?????????# [ #?????????????????????? | | ?????????# ! #?????????????????????? | | ?????????# * ! #?????????????????????? | | ?????????# ####### ! #?????????????????????? | | ?????????## ######### ##?????????????????????? | | ??????????# # # #??????????????????????? | | ??????????# # # #??????????????????????? | | ?+????????# # + #??????????????????????? | | ??????????# # # ###########????????????? | | ??????????# # """ #a ## #????????????? | | ??????????# #""""" ?# ## """" #????????????? | | ??????????# #""""" ?# ## """" #????????????? | | ??????????# #"""""??# ## """" #????????????? | | ??????????# # """ ??# k## #????????????? | | ??????????# #? ???# ## #????????????? | | ??????????# #?? ???# ## !!#????????????? | | ??????????# #??#????# ## ! !!#????????????? | | ?????????## ##?????## @## %%[ #????????????? | | ?????????# ####### g###+###########???????? | | ?????????# * g * [ #######?? | | ?????????# = % gg = | | ?????????# [ * ###?????? | | ?????????#! """ % != / %* #???????? | | ?????????##### """ ############# #???????? | | ?????????????# a# #?????? #???????? | | ?????????????# # """ #??????? #???????? | | ?????????????# " "[! #] """ #????????#???????? | | ?????????????# """*k% # """ #????????????????? | | ?????????????# """% # #????????????????? | | ?????????????# =! # """ #????????????????? | | ?????????????# * # """ #????????????????? | | ?????????????# "" + """ ##???????????????? | | ???########### """ # #???????????????? | | ???# ## """ # " " ##???????????????? | | ???# "" ## # "T" #????????????????? | | ???# "T # # """%#????????????????? | | ???# "" # """ # *!#????????????????? | | ???# + """ ##+#####????????????????? | | ???# """ # """ ## #????????????????????? | | ???# """ # #????????????????????? | | ???# ! """ # ##### #????????????????????? | | ???# # """ #####+#####????????????????? | +----------------------------------------------------+ Best States ------------- Heat Dissipation 45 Energy Generation 14 Energy Capacity 250 Matter Stores 300 Matter Capacity 300 Sight Range 16 Terrain Scan Density 10 ECM Strength 1 Evasion (%) 54 Targeting Accuracy 6 Recoil Reduction 5 Item Schematics ----------------- None Robot Schematics ------------------ None Fabricated ------------ Nothing Repaired ---------- Nothing Studied --------- None Alien Tech Used ----------------- None Achievements -------------- Slippery One Challenges ------------ None Game ------ Seed DecoderHeatDriveblaster Manual? 0 Play Time 00:19:11 Cumulative 29.3 hours Start 2025.11.08 @ 14:23:24 End 2025.11.08 @ 14:39:22 Sessions 1 Manual Loads 0 Difficulty Rogue Special Mode None Game No. 61 Rogue 61 Adventurer 0 Explorer 0 Win Type - Total 0 Types 0/0/0/0/0/0/0/0/0/0 Lore% 16 Gallery% 26 Achievement% 23 Wizard Run 0 Options --------- Layout 0 ASCII 1 Keyboard 1 Movement Numpad Keybinds 0 Fullscreen 1 Font 18/VGA_Max Map View 76x50 Zoom Use 0% Tactical HUD 1 Map Filters NONE Filters NONE Steam 1 RUN: 66cc8fcb-ab29-44ad-9a3a-abde1c60e216